Cogmind - Beta 14 @@@ ROGUE MODE // 2025.01.15 @ 06:06:41 Player: Nikolaos Result: Destroyed by G-47 Trooper with Particle Gun Performance ------------- Evolutions (3) 1500 Regions Visited (4) 800 Robots Destroyed (54) 270 Value Destroyed (1334) 1334 Prototype IDs (1) 20 Alien Tech Used (0) 0 Bonus (0) 0 TOTAL SCORE: 3924 Bonus ------- None Cogmind --------- Core Integrity 0/700 Matter 295/300 Energy 99/100 System Corruption 0% Temperature Cool (9) Movement Core (1000) Ox19 Location -7/Factory Parts ------- > --- POWER (2) -------- (None) > --- PROPULSION (3) --- (None) > --- UTILITY (5) ------ Large Storage Unit Large Storage Unit Large Storage Unit Advanced Targeting Computer > --- WEAPON (3) ------- (None) > --- INVENTORY (15) --- Light Ion Engine Light Nuclear Core Light Nuclear Core Light Nuclear Core Hover Unit Peak State ------------ > --- POWER ------------ Heavy Ion Engine Deuterium Engine > --- PROPULSION ------- Light Treads Improved Treads Advanced Treads > --- UTILITY ---------- Large Storage Unit Large Storage Unit Large Storage Unit Advanced Targeting Computer Improved Light Armor Plating > --- WEAPON ----------- Shock Rifle Light Assault Rifle Flail > --- INVENTORY -------- Light Ion Engine Light Nuclear Core Light Nuclear Core Light Treads Light Treads Light Treads Hover Unit Flight Unit Flight Unit Flight Unit Advanced Targeting Computer Light Assault Rifle Heavy Assault Rifle [Rating: 29] Favorites ----------- Power Light Ion Engine Engine Light Ion Engine Power Core Light Nuclear Core Propulsion Light Treads Treads Light Treads Leg Aluminum Leg Wheel Wheel Hover Unit Improved Hover Unit Flight Unit Flight Unit Utility Large Storage Unit Device Improved Terrain Scanner Storage Large Storage Unit Processor Advanced Targeting Computer Protection Improved Light Armor Plating Weapon Heavy Assault Rifle Energy Gun Small Laser Ballistic Gun Heavy Assault Rifle Launcher Grenade Launcher Special Weapon Mining Laser Impact Weapon Flail Build | -11 -10 -9 -8 -7 ------- Run | Yrd Mat Mat Mat Fac Slots Evolved 6 | . . 2 2 2 Power 1 | . . 1 . . Propulsion 1 | . . . 1 . Utility 3 | . . 1 1 1 Weapon 1 | . . . . 1 Parts Attached 74 | 6 6 32 13 17 Power 12 | 1 . 6 1 4 Engine 9 | 1 . 6 1 1 Core 3 | . . . . 3 Reactor . | . . . . . Propulsion 23 | 2 1 10 4 6 Treads 9 | . . 2 4 3 Leg 3 | 2 . 1 . . Wheel 2 | . . 2 . . Hover 2 | . . 2 . . Flight 7 | . 1 3 . 3 Utility 19 | 2 2 7 6 2 Device 3 | 1 1 1 . . Storage 11 | 1 1 5 3 1 Processor 2 | . . . 1 1 Hackware . | . . . . . Protection 3 | . . 1 2 . Artifact . | . . . . . Weapon 20 | 1 3 9 2 5 Energy Gun 6 | 1 1 2 1 1 Energy Cannon . | . . . . . Ballistic Gun 8 | . . 5 . 3 Ballistic Cannon . | . . . . . Launcher 3 | . 2 1 . . Special Weapon 1 | . . 1 . . Impact Weapon 2 | . . . 1 1 Slashing Weapon . | . . . . . Piercing Weapon . | . . . . . Special Melee Weapon . | . . . . . Unidentified Prototypes 1 | . . 1 . . Parts Lost 39 | . 3 13 2 21 Power 7 | . . 3 . 4 Propulsion 14 | . 1 4 . 9 Utility 6 | . 1 2 1 2 Weapon 12 | . 1 4 1 6 Highest Loss Streak 11 | . 1 11 2 10 To Critical Strikes 1 | . . . 1 . Average Slot Usage (%) 81 | . 89 72 93 74 Engine 13 | . 14 13 18 5 Treads 10 | . . 3 25 13 Leg 4 | . 20 5 . . Flight 1 | . 2 1 . . Device 7 | . 22 10 . . Storage 16 | . 4 15 18 23 Processor 2 | . . . 3 10 Protection 4 | . . 1 12 2 Energy Gun 5 | . 13 6 . 3 Ballistic Gun 6 | . . 4 12 5 Launcher 4 | . 10 6 . . Impact Weapon 1 | . . . 2 3 Peak Build Rating 29 | 8 9 13 27 29 Average Rating 13 | 4 8 8 20 19 On Entrance 11 | . 8 8 13 27 Naked Turns . | . . . . . Heaviest Build 87 | 7 28 50 69 87 Greatest Support 65 | 20 20 40 65 65 Greatest Overweight (x) 20 | . 2 14 1 20 Average Overweight (x) 1 | . . 2 . 2 Largest Inventory Capacity 15 | 5 15 15 15 15 Average Capacity 13 | 5 7 14 15 15 Most Carried 15 | 5 5 15 15 14 Average Carried 6 | 3 4 5 9 8 Final Capacity 15 | 5 15 15 15 15 Final Carried 15 | 4 4 6 15 5 Class Distribution -------------------- 57% | Mutant 38% | Scavenger-Mutant 3% | Gunner Dominant Class ---------------- Mutant | -10/Materials Mutant | -9/Materials Scavenger-Mutant | -8/Materials Mutant | -7/Factory Resources | -11 -10 -9 -8 -7 ----------- Run | Yrd Mat Mat Mat Fac Matter Collected 1320 | 294 80 461 348 137 Remotely . | . . . . . Salvage Created 1438 | 108 129 488 445 268 Parts 101 | 14 12 37 23 15 Haulers Intercepted . | . . . . . Recyclers Shooed 1 | . . . 1 . Parts Field Recycled . | . . . . . Retrieved Matter . | . . . . . Parts Self-Destructed . | . . . . . Prevented . | . . . . . Kills | -11 -10 -9 -8 -7 ------- Run | Yrd Mat Mat Mat Fac Combat Hostiles Destroyed 37 | 1 6 14 8 8 Melee 1 | . . . . 1 Guns 24 | 1 1 9 8 5 Cannons 1 | . . 1 . . AOE 11 | . 5 4 . 2 Classes Destroyed 11 | 3 2 4 1 1 Worker 5 | 1 2 1 1 . Builder 1 | . . 1 . . Tunneler 3 | 3 . . . . Recycler 2 | . . 2 . . Mechanic 1 | . . 1 . . Watcher 5 | . 2 3 . . Swarmer 15 | . 3 7 . 5 Grunt 14 | 1 3 4 4 2 Brawler 1 | . . . 1 . Duelist 1 | . . . . 1 Sentry 6 | . . 3 3 . Best Kill Streak 4 | 2 4 4 4 3 Combat Bots Only 3 | 1 3 3 3 3 Max Kills in Single Turn 4 | 1 3 4 1 2 Gunslinging . | . . . . . Exploded 3 | . 2 3 . 2 Melee 1 | . . . . 1 Uniques/NPCs Destroyed . | . . . . . Combat | -11 -10 -9 -8 -7 -------- Run | Yrd Mat Mat Mat Fac Hostile Shots Fired 464 | 4 19 166 68 207 Missed 109 | 3 8 40 11 47 Damage Taken 5110 | 10 273 1257 1000 2570 Core 1178 | . 20 361 95 702 Absorbed by Shields . | . . . . . Regen/Repaired (Parts) 54 | . . . 54 . Core Remaining (%) 70 | 100 92 9 82 . Volleys Fired 188 | 11 22 69 44 42 Largest 3 | 1 2 2 2 3 Hottest 100 | 40 70 100 50 93 Shots Fired 242 | 11 29 86 63 53 Gun 212 | 11 22 63 63 53 Cannon . | . . . . . Launcher 27 | . 7 20 . . Special 3 | . . 3 . . Kinetic 118 | . . 30 54 34 Thermal 83 | 11 22 36 . 14 Explosive 27 | . 7 20 . . Electromagnetic 14 | . . . 9 5 Robot Hit Streak 18 | 3 5 18 14 13 Robot Miss Streak 5 | 1 3 5 3 2 Penetration Max . | . . . . . Secondary Targets 1 | . . . . 1 Max Gunslinging Chain 1 | . . . . 1 Shots Hit Robots 160 | 7 10 49 48 46 Core Hits 105 | 6 18 46 15 20 Critical Kills . | . . . . . Critical Parts Destroyed 1 | . . . 1 . Critical Strikes 3 | . . . 1 2 Burn 2 | . . . . 2 Destroy 1 | . . . 1 . Melee Attacks 3 | . . . . 3 Impact 3 | . . . . 3 Slashing . | . . . . . Piercing . | . . . . . Sneak Attacks . | . . . . . Combat Hostiles . | . . . . . Follow-up Attacks . | . . . . . Damage Inflicted 3093 | 91 604 951 777 670 Guns 1982 | 91 74 524 771 522 Cannons . | . . . . . Explosions 963 | . 530 335 . 98 Melee 50 | . . . . 50 Ramming 26 | . . 20 6 . Kinetic 1180 | . . 276 645 259 Thermal 800 | 91 74 320 . 315 Explosive 865 | . 530 335 . . Electromagnetic 172 | . . . 126 46 Impact 50 | . . . . 50 Slashing . | . . . . . Piercing . | . . . . . Highest Corruption 6 | . . 1 6 . Average Corruption 3 | . . 1 6 . Corruption Purged . | . . . . . Corruption Blocked . | . . . . . Effects 18 | . . 5 13 . Message Errors 5 | . . 1 4 . Matter Fused 4 | . . 1 3 . Data Loss (minor) 2 | . . 1 1 . Data Loss (major) 4 | . . 1 3 . Misfires 1 | . . . 1 . Alerts 1 | . . . 1 . Weapon Failures 1 | . . 1 . . Overload Shots . | . . . . . Overflow Damage 118 | . 118 . . . Projectiles . | . . . . . Explosions 118 | . 118 . . . Melee . | . . . . . Knockbacks . | . . . . . Impact . | . . . . . Kinetic . | . . . . . Secondary . | . . . . . Self-Inflicted Damage 250 | . 152 44 . 54 Shots 7 | . 2 4 . 1 Rammed 5 | . . 3 2 . Targets Rammed 7 | . . 5 2 . Kicked 1 | . . 1 . . Crushed 1 | . . 1 . . Highest Temperature 220 | 6 48 149 220 216 Average Temperature 52 | 6 14 42 56 91 Received Heat Transfer 1599 | 6 54 216 396 927 Siege Activations . | . . . . . Robots Corrupted . | . . . . . Combat Hostiles . | . . . . . Parts Fried 1 | . . . 1 . Impact Corruptions . | . . . . . Robots Melted . | . . . . . Combat Hostiles . | . . . . . Parts Melted 2 | 1 . . . 1 Heat Transferred 1661 | 200 175 570 . 716 Parts Sabotaged . | . . . . . Parts Stolen . | . . . . . Parts Stripped . | . . . . . Power Chain Reactions 1 | . . . . 1 Alert | -11 -10 -9 -8 -7 ------- Run | Yrd Mat Mat Mat Fac Peak Influence 270 | 40 270 192 141 153 Initial 52 | . 26 52 45 39 Average 65 | 20 159 53 54 66 Maximum Alert Level 1 | . 1 . . . Low Security (%) 94 | 100 55 100 100 100 Level 1 5 | . 44 . . . Level 2 . | . . . . . Level 3 . | . . . . . Level 4 . | . . . . . Level 5 . | . . . . . High Security . | . . . . . Max Security . | . . . . . Squads Dispatched 8 | . 2 2 1 3 Investigation 2 | . 2 . . . Extermination . | . . . . . Reinforcement 3 | . . 2 1 . Assault . | . . . . . Garrison 3 | . . . . 3 Intercept . | . . . . . Searches Triggered . | . . . . . Construction Impeded . | . . . . . Haulers Reinforced . | . . . . . Active Scanning Responses . | . . . . . Cargo Convoy Interrupts . | . . . . . Stealth | -11 -10 -9 -8 -7 --------- Run | Yrd Mat Mat Mat Fac Distress Signals 2 | . . 2 . . Communications Jammed . | . . . . . Distress Signals . | . . . . . Times Spotted 55 | 1 10 23 10 11 Peak Tracking Total 6 | 1 4 6 3 3 Tactical Retreats 3 | . . 1 1 1 Traps | -11 -10 -9 -8 -7 ------- Run | Yrd Mat Mat Mat Fac Traps Triggered 3 | . 1 2 . . Indirectly . | . . . . . Trap Hack Attempts . | . . . . . Triggered . | . . . . . Disarmed . | . . . . . Reprogrammed . | . . . . . Reused . | . . . . . Traps Extracted . | . . . . . Installed . | . . . . . Triggered . | . . . . . Machines | -11 -10 -9 -8 -7 ---------- Run | Yrd Mat Mat Mat Fac Machines Disabled 4 | . 3 . . 1 Max in Single Turn 2 | . 2 . . 1 Machines Repaired . | . . . . . Machines Dismantled . | . . . . . Machines Sabotaged . | . . . . . Overloaded Fab Kills . | . . . . . Hacking | -11 -10 -9 -8 -7 --------- Run | Yrd Mat Mat Mat Fac Machines Accessed 7 | . 1 3 3 . Terminals 6 | . 1 3 2 . Fabricators . | . . . . . Repair Stations 1 | . . . 1 . Recycling Units . | . . . . . Scanalyzers . | . . . . . Garrison Access . | . . . . . Total Hacks 15 | . 4 5 6 . Successful 12 | . 3 4 5 . Failed 3 | . 1 1 1 . Catastrophic . | . . . . . Database Lockouts . | . . . . . Manual . | . . . . . Terminals 12 | . 4 5 3 . Fabricators . | . . . . . Repair Stations 3 | . . . 3 . Recycling Units . | . . . . . Scanalyzers . | . . . . . Garrison Access . | . . . . . Terminal Hacks 10 | . 3 4 3 . Record 6 | . 1 4 1 . Alert Level 1 | . . . 1 . Locate Traps 1 | . 1 . . . Dispatch Records 1 | . 1 . . . Registered Components 1 | . . . 1 . Fabricator Hacks . | . . . . . Repair Station Hacks 2 | . . . 2 . Scan Component 1 | . . . 1 . Repair 1 | . . . 1 . Recycling Unit Hacks . | . . . . . Scanalyzer . | . . . . . Garrison Access Hacks . | . . . . . Unauthorized Hacks . | . . . . . Terminals . | . . . . . Fabricators . | . . . . . Repair Stations . | . . . . . Recycling Units . | . . . . . Scanalyzers . | . . . . . Garrison Access . | . . . . . Data Cores Recovered . | . . . . . Used . | . . . . . Hacking Detections 5 | . 1 2 2 . Full Trace Events 1 | . . . 1 . Feedback Events . | . . . . . Feedback Blocked . | . . . . . Robot Schematics Acquired . | . . . . . Robots Built . | . . . . . Authchips . | . . . . . Time . | . . . . . Total Robot Build Rating . | . . . . . Part Schematics Acquired . | . . . . . Parts Built . | . . . . . Authchips . | . . . . . Time . | . . . . . Total Part Build Rating . | . . . . . Parts Repaired 1 | . . . 1 . Time 26 | . . . 26 . Parts Recycled . | . . . . . Recycled Matter . | . . . . . Retrieved Matter . | . . . . . Retrieved Components . | . . . . . Parts Scanalyzed . | . . . . . Part Schematics Acquired . | . . . . . Parts Damaged . | . . . . . Bothacking | -11 -10 -9 -8 -7 ------------ Run | Yrd Mat Mat Mat Fac Used RIF Installer . | . . . . . Robots Hacked . | . . . . . Non-combat . | . . . . . Combat . | . . . . . Robot Hacks Applied . | . . . . . Relay Couplers Released . | . . . . . Fabnet Peak Effective % . | . . . . . Robots Rewired . | . . . . . Allies Hacked . | . . . . . Hacks Repelled . | . . . . . Allies | -11 -10 -9 -8 -7 -------- Run | Yrd Mat Mat Mat Fac Total Allies . | . . . . . Largest Group . | . . . . . Highest-Rated Group . | . . . . . Highest-Rated Ally . | . . . . . Total Orders . | . . . . . Ally Attacks . | . . . . . Total Damage . | . . . . . Kills . | . . . . . Allies Corrupted . | . . . . . Allies Melted . | . . . . . Intel | -11 -10 -9 -8 -7 ------- Run | Yrd Mat Mat Mat Fac Robot Analysis Total . | . . . . . Derelict Logs Recovered . | . . . . . Drone Launches . | . . . . . Drone Recoveries . | . . . . . Exploration | -11 -10 -9 -8 -7 ------------- Run | Yrd Mat Mat Mat Fac Turns Passed 3912 | 224 464 1642 1098 484 Spaces Moved 1506 | 162 281 494 451 118 Core 94 | 26 . 59 . 9 Treads 678 | . . 123 451 104 Legs 594 | 136 249 209 . . Wheels 2 | . . 2 . . Hover 59 | . . 59 . . Flight 79 | . 32 42 . 5 Fastest Speed 50 | 50 120 56 155 235 Average Speed 217 | 108 142 274 212 320 Slowest Speed 1240 | 120 260 750 240 1240 Overloaded Moves . | . . . . . Propulsion Burnouts . | . . . . . Robots Hopped . | . . . . . Cave-ins Triggered . | . . . . . Exploration Rate (%) 18 | 10 25 29 25 3 Regions Visited 4 Branch Regions . Pre-discovered Areas . | . . . . . Known Exits Taken . | . . . . . Unknown Exits Taken 4 | 1 1 1 1 . Scrap Searched . | . . . . . Spaces Dug 62 | . . 62 . . Terrain Destroyed 206 | . 51 152 . 3 Melee . | . . . . . Projectile . | . . . . . AOE 206 | . 51 152 . 3 Terrain Rammed . | . . . . . Walls Destroyed . | . . . . . Machines Disabled . | . . . . . Actions | -11 -10 -9 -8 -7 --------- Run | Yrd Mat Mat Mat Fac Total 1908 | 203 319 677 525 184 Wait 32 | 1 . 31 . . Move 1502 | 161 280 493 450 118 Hop . | . . . . . Pick Up 79 | 17 6 38 14 4 Fast Attach 1 | . 1 . . . Attach 56 | 6 5 26 5 14 Detach 5 | . 1 4 . . Swap 17 | . . 6 8 3 Drop 18 | 7 4 5 2 . Fire 188 | 11 22 69 44 42 Melee 3 | . . . . 3 Ram 3 | . . 3 . . Kick 1 | . . 1 . . Crush 3 | . . 1 2 . Escape Stasis . | . . . . . Rewire . | . . . . . Trap . | . . . . . Miscellaneous . | . . . . . Route ------- -11/Scrapyard -10/Materials -9/Materials -8/Materials -7/Factory History --------- Turn | Location | Event 2 | -11/Scrapyard | Met Revision 17 76 | -11/Scrapyard | Discovered new exit (range 8) 225 | -11/Scrapyard | Entered Materials 302 | -10/Materials | Build established: Mutant 459 | -10/Materials | Discovered new exit (range 12) 689 | -10/Materials | Entered another Materials area 689 | -9/Materials | Evolved 2 slots: Power x1, Utility x1 977 | -9/Materials | Build established: Scavenger-Mutant 1490 | -9/Materials | Build established: Mutant 1705 | -9/Materials | Core integrity fell below 50% 1741 | -9/Materials | Lost 11 parts (3p3n2u3w) 1978 | -9/Materials | Core integrity fell below 20% 2271 | -9/Materials | Discovered new exit (range 12) 2331 | -9/Materials | Entered another Materials area 2331 | -8/Materials | Evolved 2 slots: Propulsion x1, Utility x1 2432 | -8/Materials | Build established: Scavenger-Mutant 2593 | -8/Materials | Repaired Lgt. Armor Plating 3305 | -8/Materials | Build established: Mutant 3361 | -8/Materials | Discovered new exit (range 10) 3429 | -8/Materials | Entered Factory 3429 | -7/Factory | Evolved 2 slots: Utility x1, Weapon x1 3570 | -7/Factory | Garrison activated, responded to threat 3652 | -7/Factory | Lost 8 parts (2p2n1u3w) 3831 | -7/Factory | Core integrity fell below 50% 3875 | -7/Factory | Core integrity fell below 20% 3890 | -7/Factory | Lost 10 parts (2p5n1u2w) 3913 | -7/Factory | Destroyed by G-47 Trooper with Particle Gun Last Messages --------------- Lgt. Nuclear Core destroyed. Lgt. Treads destroyed. Lgt. Nuclear Core destroyed. Particle Gun destroyed. Lgt. Treads destroyed. Critical hit (Burn: +37). K-01 Serf collects debris. Adv. Targeting Computer destroyed. Critical hit (Burn: +37). K-01 Serf collects debris. Flight Unit destroyed. K-01 Serf collects debris. Flight Unit destroyed. Hold RMB on a map location to designate it as a relative view centerpoint. This is especially useful while zoomed, in order to see further in your current direction of exploration. Try it now. Flail destroyed. Critical hit (Burn: +37). K-01 Serf cleans the Assembly Bed. [Achievement: First Step to Greatness] Map ----- +----------------------------------------------------+ | ??????????????????????? "" +???????# #?? | | ????????????????????????? #???????# #?? | | ?????????????????????????? ######### #?? | | ???????????????????????????# # # #?? | | ???????????????????????????# # """" # #?? | | ???????????????????????????# #! """" # #?? | | ???????????????????????????+ # """" # #?? | | ???????????????????????????# % """%#= #?? | | ???????????????????????????# =%/= """*+%! #?? | | ???????????????????????????# "%==""" #= #?? | | ???????????????????????????# "=!!= # #?? | | ???????????????????????????# # # ### | | ??????????????????########## # # | | ?????????????????# + # !# | | ?????????????????# # ######### | | ?????????????????# # #???????# | | ?????????????????# # #???????# | | ?????????????????# # #??############## | | ?????????????????# # #? ???# | | ?????????????????# # # #??# | | ?????????????????# # ^ ^ + ??????# | | ?????????????????########### ^ ^#????????????# | | ?????????????????########### #????????????# | | ?????????????????# ] # #????????????# | | ?????????????????# /# #????????????# | | ?????????????????+ @ # #????????????# | | ?????????????????# """""" # #????????????# | | ?????????????????# """""" g #????????????# | | ??????????????????? """""" # #????????????# | | ????????????????????""""""g# #????????????# | | ????????????????????? + #????????????#### | | ????????????????????##########+###???????????????? | | ?????????????????????????????????????????????????? | | ?????????????????????????????????????????????????? | | ?????????????????????????????????????????????????? | | ?????????????????????????????????????????????????? | | ?????????????????????????????????????????????????? | | ?????????????????????????????????????????????????? | | ?????????????????????????????????????????????????? | | ?????????????????????????????????????????????????? | | ?????????????????????????????????????????????????? | | ?????????????????????????????????????????????????? | | | | | | | | | | | | | | | | | +----------------------------------------------------+ Best States ------------- Heat Dissipation 34 Energy Generation 23 Energy Capacity 455 Matter Stores 400 Matter Capacity 500 Sight Range 16 Terrain Scan Range 16 Terrain Scan Density 10 Armor Coverage 300 Evasion (%) 55 Targeting Accuracy 16 Recoil Reduction 3 Item Schematics ----------------- None Robot Schematics ------------------ None Fabricated ------------ Nothing Alien Tech Used ----------------- None Achievements -------------- Close Call Crack Shot First Step to Greatness Let's See Who's Tougher Made in Tau Ceti IV Part-time Mechanic Remodeling Risk Taker Storm Trooper Troublemaker Uninvited Guest Universal Adapter Challenges ------------ None Game ------ Seed StormDefenseInjector Manual? 0 Play Time 01:12:14 Cumulative 1.1 hours Start 2025.01.15 @ 04:46:31 End 2025.01.15 @ 06:06:41 Sessions 2 Manual Loads 0 Difficulty Rogue Special Mode None Game No. 1 Rogue 1 Adventurer 0 Explorer 0 Win Type - Total 0 Types 0/0/0/0/0/0/0/0/0 Lore% 0 Gallery% 2 Achievement% 4 Wizard Run 0 Options --------- Layout 0 ASCII 0 Keyboard 0 Movement Arrows Keybinds 0 Fullscreen 1 Font 18/TerminusBold Map View 38x25 Zoom Use 69% Tactical HUD 0 Map Filters NONE Filters NONE Steam 1 RUN: 2cdca311-42fe-4c21-a299-ae86034973cf